Cogmind - Beta 15 @@@ ROGUE MODE // 2025.05.08 @ 21:57:22 Player: Eggpie Result: Destroyed by D-53 Grenadier with Mini Grenade Launcher Performance ------------- Evolutions (0) 0 Regions Visited (2) 400 Robots Destroyed (14) 70 Value Destroyed (449) 449 Prototype IDs (4) 80 Alien Tech Used (0) 0 Bonus (0) 0 TOTAL SCORE: 999 Bonus ------- None Cogmind --------- Core Integrity 0/250 Matter 300/300 Energy 250/250 System Corruption 0% Temperature Cool (0) Movement Walking (260) Ox2 Location -10/Mines Parts ------- > --- POWER (1) -------- Ion Engine > --- PROPULSION (2) --- Carbon-fiber Leg > --- UTILITY (2) ------ Medium Storage Unit Splice Drone Bay (6/6) > --- WEAPON (2) ------- Particle Cannon Heavy Battle Rifle > --- INVENTORY (10) --- Ion Engine Cryofiber Web Heat Sink Weight Redist. System Weight Redist. System Hardened Medium Armor Plating Small Laser Particle Cannon Peak State ------------ > --- POWER ------------ Ion Engine > --- PROPULSION ------- Carbon-fiber Leg Compact Wheel > --- UTILITY ---------- Medium Storage Unit Splice Drone Bay > --- WEAPON ----------- Particle Cannon Heavy Battle Rifle > --- INVENTORY -------- Ion Engine Heat Sink Weight Redist. System Weight Redist. System Small Laser Particle Cannon [Rating: 19] Favorites ----------- Power Ion Engine Engine Ion Engine Propulsion Compact Wheel Leg Carbon-fiber Leg Wheel Compact Wheel Utility Weight Redist. System Device Weight Redist. System Storage Medium Storage Unit Weapon Small Laser Energy Gun Small Laser Energy Cannon Particle Cannon Ballistic Gun Heavy Battle Rifle Launcher Grenade Launcher Build | -11 -10 -10 ------- Run | Yrd Mat Min Slots Evolved . | . . . Power . | . . . Propulsion . | . . . Utility . | . . . Weapon . | . . . Parts Attached 16 | 6 2 8 Power 2 | 1 1 . Engine 2 | 1 1 . Core . | . . . Reactor . | . . . Propulsion 4 | 2 . 2 Treads . | . . . Leg 1 | . . 1 Wheel 3 | 2 . 1 Hover . | . . . Flight . | . . . Utility 4 | 1 1 2 Device 2 | . 1 1 Storage 2 | 1 . 1 Processor . | . . . Hackware . | . . . Protection . | . . . Artifact . | . . . Weapon 6 | 2 . 4 Energy Gun 2 | 2 . . Energy Cannon 1 | . . 1 Ballistic Gun 1 | . . 1 Ballistic Cannon . | . . . Launcher 2 | . . 2 Special Weapon . | . . . Impact Weapon . | . . . Slashing Weapon . | . . . Piercing Weapon . | . . . Special Melee Weapon . | . . . Unidentified Prototypes 1 | . . 1 Parts Lost 3 | . 1 2 Power 1 | . 1 . Propulsion 1 | . . 1 Utility . | . . . Weapon 1 | . . 1 Highest Loss Streak 2 | . 1 2 To Critical Strikes . | . . . Average Backups 6 | . 5 7 Power . | . . 1 Propulsion . | . . . Utility 1 | . 1 2 Weapon 3 | . 3 3 Tool/Special . | . . . Unused Backups 6 | . 1 5 Power 1 | . . 1 Propulsion . | . . . Utility 2 | . . 2 Weapon 3 | . 1 2 Tool/Special . | . . . Average Slot Usage (%) 96 | . 97 96 Engine 14 | . 14 14 Wheel 25 | . 28 24 Device 13 | . 12 14 Storage 14 | . 14 14 Energy Gun 11 | . 28 5 Energy Cannon 1 | . . 2 Ballistic Gun 6 | . . 9 Launcher 7 | . . 10 Peak Build Rating 19 | 6 9 19 Average Rating 11 | 4 8 13 On Entrance 5 | . 6 9 Naked Turns . | . . . Heaviest Build 31 | 10 12 31 Greatest Support 38 | 32 38 38 Greatest Overweight (x) 2 | . . 2 Average Overweight (x) . | . . . Largest Inventory Capacity 10 | 8 8 10 Average Capacity 8 | 6 8 9 Most Carried 8 | 2 8 8 Average Carried 6 | 1 5 7 Final Capacity 10 | 8 8 10 Final Carried 8 | 2 8 8 Class Distribution -------------------- 100% | Mutant Dominant Class ---------------- Mutant | -10/Materials Mutant | -10/Mines Resources | -11 -10 -10 ----------- Run | Yrd Mat Min Matter Collected 483 | 190 82 211 Remotely . | . . . Salvage Created 451 | . 215 236 Parts 22 | . 11 11 Haulers Intercepted . | . . . Recyclers Shooed . | . . . Parts Field Recycled . | . . . Retrieved Matter . | . . . Parts Self-Destructed . | . . . Prevented . | . . . Kills | -11 -10 -10 ------- Run | Yrd Mat Min Combat Hostiles Destroyed 20 | . 5 15 Guns 7 | . 5 2 Cannons 3 | . . 3 AOE 10 | . . 10 Classes Destroyed 5 | . 1 4 Worker 1 | . . 1 Swarmer 3 | . . 3 Grunt 9 | . 5 4 Demolisher 1 | . . 1 Assembled 7 | . . 7 Best Kill Streak 7 | . 3 7 Combat Bots Only 7 | . 3 7 Max Kills in Single Turn 5 | . 1 5 Gunslinging . | . . . Exploded 5 | . . 5 Melee . | . . . Uniques/NPCs Destroyed . | . . . Combat | -11 -10 -10 -------- Run | Yrd Mat Min Hostile Shots Fired 74 | . 32 42 Missed 26 | . 9 17 Hits 48 | . 23 25 Projectile 48 | . 23 25 AOE 9 | . . 9 Critical Strikes 3 | . 1 2 Damage Taken 833 | 1 276 556 Core 271 | . 97 174 Absorbed by Shields . | . . . Core Remaining (%) 100 | 100 . . Volleys Fired 37 | . 18 19 Largest 2 | . 2 2 Hottest 101 | . 80 101 Shots Fired 71 | . 36 35 Gun 55 | . 36 19 Cannon 7 | . . 7 Launcher 9 | . . 9 Special . | . . . Kinetic 17 | . . 17 Thermal 45 | . 36 9 Explosive 9 | . . 9 Electromagnetic . | . . . Robot Hit Streak 10 | . 6 10 Robot Miss Streak 5 | . 4 5 Penetration Max . | . . . Secondary Targets 2 | . 2 . Max Gunslinging Chain 1 | . 1 . Shots Hit Robots 42 | . 22 20 Core Hits 40 | . 10 30 Critical Kills 1 | . . 1 Critical Parts Destroyed . | . . . Critical Strikes 1 | . . 1 Destroy 1 | . . 1 Melee Attacks . | . . . Impact . | . . . Slashing . | . . . Piercing . | . . . Sneak Attacks . | . . . Combat Hostiles . | . . . Follow-up Attacks . | . . . Damage Inflicted 1197 | 2 239 956 Guns 490 | . 239 251 Cannons 62 | . . 62 Explosions 643 | . . 643 Melee . | . . . Ramming 2 | 2 . . Kinetic 240 | . . 240 Thermal 312 | . 239 73 Explosive 643 | . . 643 Electromagnetic . | . . . Impact . | . . . Slashing . | . . . Piercing . | . . . Highest Corruption . | . . . Average Corruption . | . . . Corruption Purged . | . . . Corruption Blocked . | . . . Overload Shots . | . . . Overflow Damage 18 | . . 18 Projectiles . | . . . Explosions 18 | . . 18 Melee . | . . . Knockbacks . | . . . Impact . | . . . Kinetic . | . . . Secondary . | . . . Self-Inflicted Damage 33 | 1 . 32 Shots 2 | . . 2 Rammed 1 | 1 . . Targets Rammed 1 | 1 . . Kicked . | . . . Crushed . | . . . Highest Temperature 294 | . 294 156 Average Temperature 78 | . 106 45 Received Heat Transfer 234 | . 174 60 Siege Activations . | . . . Martial Activations . | . . . Shielding Activations . | . . . Robots Disrupted . | . . . Combat Hostiles . | . . . Robots Corrupted . | . . . Combat Hostiles . | . . . Parts Fried . | . . . Impact Corruptions . | . . . Robots Melted . | . . . Combat Hostiles . | . . . Parts Melted . | . . . Heat Transferred 686 | . 550 136 Parts Sabotaged . | . . . Parts Stolen . | . . . Parts Stripped . | . . . Power Chain Reactions . | . . . Alert | -11 -10 -10 ------- Run | Yrd Mat Min Maximum Alert Level . | . . . Low Security (%) 100 | 100 100 100 Level 1 . | . . . Level 2 . | . . . Level 3 . | . . . Level 4 . | . . . Level 5 . | . . . High Security . | . . . Max Security . | . . . Peak Influence 119 | . 75 119 Initial 25 | . . 25 Average 37 | . 26 45 Influence Increases 456 | . 137 319 Destroy 0b10 Robot/C 260 | . 100 160 Destroy 0b10 Robot/NC 5 | . . 5 Destroy Leader 60 | . 30 30 Successful Hack 11 | . 7 4 Disable Machine 30 | . . 30 Destroy Structure 45 | . . 45 Lose Combat Pursuer 45 | . . 45 Influence Decreases 369 | . 72 297 Entered New Map 40 | . . 40 Time Decay 312 | . 62 250 Lost Part 17 | . 10 7 Squads Dispatched 3 | . 3 . Investigation 2 | . 2 . Extermination . | . . . Reinforcement 1 | . 1 . Assault . | . . . Garrison . | . . . Intercept . | . . . Searches Triggered . | . . . Construction Impeded . | . . . Haulers Reinforced . | . . . Active Scanning Responses . | . . . Cargo Convoy Interrupts . | . . . Stealth | -11 -10 -10 --------- Run | Yrd Mat Min Distress Signals 2 | . 1 1 Communications Jammed . | . . . Distress Signals . | . . . Times Spotted 27 | . 7 20 Peak Tracking Total 8 | . 4 8 Tactical Retreats 2 | . . 2 Traps | -11 -10 -10 ------- Run | Yrd Mat Min Traps Triggered 1 | . 1 . Indirectly . | . . . Trap Hack Attempts . | . . . Triggered . | . . . Disarmed . | . . . Reprogrammed . | . . . Reused . | . . . Traps Extracted . | . . . Installed . | . . . Triggered . | . . . Machines | -11 -10 -10 ---------- Run | Yrd Mat Min Machines Disabled 2 | . . 2 Max in Single Turn 1 | . . 1 Machines Repaired . | . . . Machines Dismantled . | . . . Machines Sabotaged . | . . . Overloaded Fab Kills . | . . . Hacking | -11 -10 -10 --------- Run | Yrd Mat Min Machines Accessed 5 | . 3 2 Terminals 4 | . 3 1 Fabricators . | . . . Repair Stations . | . . . Recycling Units . | . . . Scanalyzers . | . . . Garrison Access . | . . . Total Hacks 16 | . 12 4 Successful 12 | . 8 4 Failed 4 | . 4 . Catastrophic . | . . . Database Lockouts . | . . . Manual . | . . . Terminals 15 | . 12 3 Fabricators . | . . . Repair Stations . | . . . Recycling Units . | . . . Scanalyzers . | . . . Garrison Access . | . . . Terminal Hacks 12 | . 8 4 Record 7 | . 4 3 Prototype ID Bank 2 | . 2 . Open Door 1 | . . 1 Dispatch Records 1 | . 1 . Hauler Manifests 1 | . 1 . Fabricator Hacks . | . . . Repair Station Hacks . | . . . Recycling Unit Hacks . | . . . Scanalyzer . | . . . Garrison Access Hacks . | . . . Unauthorized Hacks . | . . . Terminals . | . . . Fabricators . | . . . Repair Stations . | . . . Recycling Units . | . . . Scanalyzers . | . . . Garrison Access . | . . . Data Cores Recovered . | . . . Used . | . . . Hacking Detections 4 | . 3 1 Full Trace Events 1 | . 1 . Feedback Events . | . . . Feedback Blocked . | . . . Robot Schematics Acquired . | . . . Robots Built . | . . . Authchips . | . . . Time . | . . . Total Robot Build Rating . | . . . Part Schematics Acquired . | . . . Parts Built . | . . . Authchips . | . . . Time . | . . . Total Part Build Rating . | . . . Parts Repaired . | . . . Time . | . . . Parts Recycled . | . . . Recycled Matter . | . . . Retrieved Matter . | . . . Retrieved Components . | . . . Parts Scanalyzed . | . . . Part Schematics Acquired . | . . . Parts Damaged . | . . . Bothacking | -11 -10 -10 ------------ Run | Yrd Mat Min Used RIF Installer . | . . . Robots Hacked . | . . . Non-combat . | . . . Combat . | . . . Robot Hacks Applied . | . . . Relay Couplers Released . | . . . Fabnet Peak Effective % . | . . . Robots Rewired . | . . . Allies Hacked . | . . . Hacks Repelled . | . . . Allies | -11 -10 -10 -------- Run | Yrd Mat Min Total Allies . | . . . Largest Group . | . . . Highest-Rated Group . | . . . Highest-Rated Ally . | . . . Total Orders 2 | . . 2 RETURN 2 | . . 2 Ally Attacks 4 | . . 4 Total Damage 6 | . . 6 Kills . | . . . Allies Corrupted . | . . . Allies Melted . | . . . Intel | -11 -10 -10 ------- Run | Yrd Mat Min Active Infowar (turns) . | . . . Robot Analysis Total . | . . . Derelict Logs Recovered 1 | . . 1 Drone Launches 9 | . . 9 Drone Recoveries 9 | . . 9 Exploration | -11 -10 -10 ------------- Run | Yrd Mat Min Turns Passed 823 | 52 209 562 Spaces Moved 619 | 43 144 432 Core 11 | 11 . . Treads . | . . . Legs 7 | . . 7 Wheels 601 | 32 144 425 Hover . | . . . Flight . | . . . Fastest Speed 50 | 50 100 100 Average Speed 102 | 87 100 104 Slowest Speed 260 | 100 100 260 Overloaded Moves . | . . . Propulsion Burnouts . | . . . Robots Hopped . | . . . Potential Cave-ins . | . . . Cave-ins Triggered . | . . . Exploration Rate (%) 43 | 4 33 93 Regions Visited 2 Branch Regions 1 Pre-discovered Areas 1 | . . 1 Known Exits Taken . | . . . Unknown Exits Taken 2 | 1 1 . Scrap Searched 2 | . . 2 Spaces Dug . | . . . Terrain Destroyed 74 | . . 74 Melee . | . . . Projectile 1 | . . 1 AOE 73 | . . 73 Terrain Rammed . | . . . Walls Destroyed . | . . . Machines Disabled . | . . . Actions | -11 -10 -10 --------- Run | Yrd Mat Min Total 739 | 57 173 509 Wait 37 | . . 37 Move 618 | 43 143 432 Hop . | . . . Pick Up 23 | 8 9 6 Fast Attach . | . . . Attach 13 | 6 2 5 Detach 1 | . . 1 Swap 3 | . . 3 Drop 7 | . 1 6 Fire 37 | . 18 19 Melee . | . . . Ram . | . . . Kick . | . . . Crush . | . . . Escape Stasis . | . . . Rewire . | . . . Trap . | . . . Miscellaneous . | . . . Route ------- -11/Scrapyard -10/Materials -10/Mines (discovered 2 exits: [*Mat x2]) History --------- Turn | Location | Event 9 | -11/Scrapyard | Discovered new exit (range 16) 53 | -11/Scrapyard | Entered Materials 184 | -10/Materials | Discovered new exit (range 15) 262 | -10/Materials | Entered Mines 302 | -10/Mines | Discovered new exit (range 8) 315 | -10/Mines | Build established: Mutant 364 | -10/Mines | Learned location of Mines (-8) 371 | -10/Mines | Discovered new exit (range 7) 427 | -10/Mines | A weapon hastily lodged in a ceiling crevice suddenly fell to the ground 539 | -10/Mines | Assembled infested the area 546 | -10/Mines | Found the Drone Emporium 550 | -10/Mines | Found Prototype Device 552 | -10/Mines | Identified Splice Drone Bay 662 | -10/Mines | Destroyed 7 combat bots 695 | -10/Mines | Core integrity fell below 50% 716 | -10/Mines | Core integrity fell below 20% 824 | -10/Mines | Destroyed by D-53 Grenadier with Mini Grenade Launcher Last Messages --------------- 00740_ S-10 Pest reactivates. 00742_ Laser Drill disabled. 00745_ S-10 Pest destroyed. 00748_ Acquired 17 matter. 00749_ The unstable cave ceiling collapses. 00755_ S-10 Pest destroyed. 00760_ Searching scrap... 00760_ Found 50 Matter. 00760_ Found Lgt. Treads. 00760_ Found Lgt. Ion Engine. 00760_ Found 67 Matter. 00761_ Acquired 26 matter. 00794_ K-01 Serf collects debris. 00802_ Acquired Carbon-fiber Leg. 00804_ Dropped Com. Wheel. 00804_ Acquired 10 matter. 00815_ Acquired Hrd. Medium Armor Plating. 00821_ The unstable cave ceiling collapses. 00821_ Acquired Cryofiber Web. 00824_ The unstable cave ceiling collapses. Map ----- +----------------------------------------------------+ | | | | | | | | | | | | | | | | | | | | | | | | | | | | | ??????????????????????????????????????????????? | | ??????????????????????????????????????????????? | | ??????????????????????????????????????????????? | | ??????????????????????????????????????????????? | | ??????????????????????????????????????????????? | | ??????????????????????????????????????????????? | | ??????????????????????????????????????????????? | | ???????????????????????????????????????###????? | | ???????????????????########???????????# ##???? | | ???????????????????#""""""#??????????? #???? | | ################?###!] !!#? ??????? ##??? | | ## #?# @## #?????### ##?? | | ### #* ##????? #?? | | * = ## #!%"" ##???? #?? | | """ * " = ##???# #?? | | """ """= # # k ##### #?? | | """ """%### % % # d #?? | | #?## | # #?? | | ###### ###??##### ## ##### #?? | | ??#### #????# ###?# ###???## #?? | | ### %=#????# # ###?## ##??????# ##?? | | *%#????## # ### #???##### ####??? | | ### ####?????# # #???# ## #?????? | | ??# #????????# # # # ###### #?????? | | ??# #????????# # ## = #?????? | | ??# #????????# #!! #?????? | | ??# #????????# = ##????? | | ??# #????????## # =! ##???? | | ??# #?????????## # #???? | | ?? ??????????## ## #??? | | ??# ???????????## ## ### #?? | | ?? ""???????????# ### #### #? | | ?? ""???????????######## #?# #? | | ?? ""?????????????????## #?# " #? | | ?? "?????????????????## ##?## ##? | | ?? ?????????????????# #???# ###?? | +----------------------------------------------------+ Best States ------------- Heat Dissipation 25 Energy Generation 10 Energy Capacity 250 Matter Stores 300 Matter Capacity 300 Sight Range 16 Terrain Scan Density 10 Additional Mass Support 6 Evasion (%) 50 Item Schematics ----------------- None Robot Schematics ------------------ None Fabricated ------------ Nothing Repaired ---------- Nothing Alien Tech Used ----------------- None Achievements -------------- Factory Defaults Quick And Dirty Challenges ------------ None Game ------ Seed RagnarokMasterSource Manual? 0 Play Time 00:13:44 Cumulative 23.6 hours Start 2025.05.08 @ 21:42:27 End 2025.05.08 @ 21:57:22 Sessions 1 Manual Loads 0 Difficulty Rogue Special Mode None Game No. 10 Rogue 4 Adventurer 0 Explorer 6 Win Type - Total 1 Types 1/0/0/0/0/0/0/0/0/0 Lore% 11 Gallery% 37 Achievement% 39 Wizard Run 0 Options --------- Layout 1 ASCII 0 Keyboard 0 Movement Mouse Keybinds 0 Fullscreen 1 Font 36/Smallcaps Map View 50x35 Zoom Use 0% Tactical HUD 1 Map Filters NONE Filters NONE Steam 1 RUN: cba8e9a1-dd33-4031-bc56-da8745533b3d